[Event "Titled Tuesday Blitz November 15 Late 2022"]
[White "Megalios, Konstantinos"]
[Black "Kleiman, Jake"]
[WhiteFideId "4238044"]
[BlackFideId "2020041"]
[WhiteElo "2277"]
[BlackElo "2632"]
[Result "1-0"]
[Round "08"]
[TimeControl "180+1"]
[Date "2022.11.16"]
[WhiteClock "0:00:15"]
[BlackClock "0:00:07"]

1. e4 {[%clk 0:03:00]}  e5 {[%clk 0:02:59]} 2. Nf3 {[%clk 0:02:57]}  Nc6 {[%clk 0:02:59]} 3. Bb5 {[%clk 0:02:57]}  a6 {[%clk 0:02:59]} 4. Ba4 {[%clk 0:02:57]}  Nf6 {[%clk 0:02:59]} 5. O-O {[%clk 0:02:57]}  b5 {[%clk 0:02:59]} 6. Bb3 {[%clk 0:02:57]}  Bc5 {[%clk 0:03:00]} 7. a4 {[%clk 0:02:56]}  Rb8 {[%clk 0:03:00]} 8. Nxe5 {[%clk 0:02:43]}  Nxe5 {[%clk 0:02:58]} 9. d4 {[%clk 0:02:43]}  Bxd4 {[%clk 0:02:58]} 10. Qxd4 {[%clk 0:02:44]}  d6 {[%clk 0:02:59]} 11. Bf4 {[%clk 0:02:43]}  c5 {[%clk 0:02:26]} 12. Qe3 {[%clk 0:02:42]}  c4 {[%clk 0:02:23]} 13. Ba2 {[%clk 0:02:42]}  O-O {[%clk 0:02:23]} 14. Nc3 {[%clk 0:02:24]}  h6 {[%clk 0:02:18]} 15. axb5 {[%clk 0:02:22]}  axb5 {[%clk 0:02:18]} 16. b4 {[%clk 0:02:23]}  Re8 {[%clk 0:02:11]} 17. Rab1 {[%clk 0:02:18]}  Qc7 {[%clk 0:01:55]} 18. Rbd1 {[%clk 0:02:17]}  Qc6 {[%clk 0:01:36]} 19. f3 {[%clk 0:02:15]}  Ra8 {[%clk 0:01:29]} 20. Bb1 {[%clk 0:02:15]}  Ra3 {[%clk 0:01:24]} 21. Qd4 {[%clk 0:02:08]}  Bb7 {[%clk 0:00:52]} 22. Rfe1 {[%clk 0:02:04]}  Re6 {[%clk 0:00:45]} 23. Bc1 {[%clk 0:01:51]}  Ra8 {[%clk 0:00:43]} 24. Ne2 {[%clk 0:01:51]}  Nh5 {[%clk 0:00:37]} 25. Nf4 {[%clk 0:01:32]}  Nxf4 {[%clk 0:00:36]} 26. Bxf4 {[%clk 0:01:33]}  Rae8 {[%clk 0:00:32]} 27. c3 {[%clk 0:01:32]}  Qc7 {[%clk 0:00:31]} 28. Bg3 {[%clk 0:01:29]}  Bc6 {[%clk 0:00:30]} 29. Bc2 {[%clk 0:01:28]}  Qb7 {[%clk 0:00:28]} 30. Ra1 {[%clk 0:01:27]}  Ra8 {[%clk 0:00:27]} 31. h3 {[%clk 0:01:21]}  Qc8 {[%clk 0:00:24]} 32. Kh2 {[%clk 0:01:19]}  Qb8 {[%clk 0:00:21]} 33. Red1 {[%clk 0:01:16]}  Rg6 {[%clk 0:00:20]} 34. f4 {[%clk 0:01:01]}  Nd3 {[%clk 0:00:17]} 35. Bxd3 {[%clk 0:00:45]}  cxd3 {[%clk 0:00:18]} 36. f5 {[%clk 0:00:45]}  Rg5 {[%clk 0:00:16]} 37. Bxd6 {[%clk 0:00:42]}  Qc8 {[%clk 0:00:13]} 38. Bf4 {[%clk 0:00:39]}  Rh5 {[%clk 0:00:10]} 39. g4 {[%clk 0:00:32]}  Rg5 {[%clk 0:00:06]} 40. Rxa8 {[%clk 0:00:24]}  Qxa8 {[%clk 0:00:06]} 41. Bxg5 {[%clk 0:00:24]}  hxg5 {[%clk 0:00:05]} 42. Rxd3 {[%clk 0:00:25]}  Qa2+ {[%clk 0:00:04]} 43. Rd2 {[%clk 0:00:25]}  Qb1 {[%clk 0:00:04]} 44. Re2 {[%clk 0:00:20]}  Qf1 {[%clk 0:00:04]} 45. Qf2 {[%clk 0:00:20]}  Qc1 {[%clk 0:00:05]} 46. Qe3 {[%clk 0:00:19]}  Qf1 {[%clk 0:00:04]} 47. Rf2 {[%clk 0:00:19]}  Qb1 {[%clk 0:00:03]} 48. Re2 {[%clk 0:00:17]}  Qf1 {[%clk 0:00:03]} 49. Qf2 {[%clk 0:00:17]}  Qb1 {[%clk 0:00:03]} 50. Re1 {[%clk 0:00:18]}  Qd3 {[%clk 0:00:03]} 51. Re3 {[%clk 0:00:18]}  Qb1 {[%clk 0:00:03]} 52. Qe1 {[%clk 0:00:18]}  Qc2+ {[%clk 0:00:03]} 53. Re2 {[%clk 0:00:19]}  Qd3 {[%clk 0:00:04]} 54. Qd2 {[%clk 0:00:18]}  Qf3 {[%clk 0:00:04]} 55. Re3 {[%clk 0:00:15]}  Qf1 {[%clk 0:00:04]} 56. Qe2 {[%clk 0:00:14]}  Qf4+ {[%clk 0:00:03]} 57. Kg2 {[%clk 0:00:14]}  Qe5 {[%clk 0:00:03]} 58. Qd2 {[%clk 0:00:13]}  Qf4 {[%clk 0:00:03]} 59. Qf2 {[%clk 0:00:13]}  Bxe4+ {[%clk 0:00:03]} 60. Kg1 {[%clk 0:00:13]}  Qe5 {[%clk 0:00:03]} 61. Qe1 {[%clk 0:00:12]}  Qf4 {[%clk 0:00:02]} 62. Rxe4 {[%clk 0:00:12]}  Qf3 {[%clk 0:00:03]} 63. Re3 {[%clk 0:00:12]}  Qf4 {[%clk 0:00:03]} 64. Qf2 {[%clk 0:00:13]}  Qc4 {[%clk 0:00:03]} 65. Qe2 {[%clk 0:00:13]}  Qf4 {[%clk 0:00:04]} 66. Qf3 {[%clk 0:00:13]}  Qc4 {[%clk 0:00:04]} 67. Qe4 {[%clk 0:00:13]}  Qb3 {[%clk 0:00:04]} 68. Kf2 {[%clk 0:00:13]}  Qa2+ {[%clk 0:00:03]} 69. Kg3 {[%clk 0:00:13]}  Qb3 {[%clk 0:00:04]} 70. Qe8+ {[%clk 0:00:13]}  Kh7 {[%clk 0:00:04]} 71. f6 {[%clk 0:00:13]}  gxf6 {[%clk 0:00:04]} 72. Qe4+ {[%clk 0:00:12]}  Kg7 {[%clk 0:00:04]} 73. c4 {[%clk 0:00:13]}  Qxb4 {[%clk 0:00:04]} 74. cxb5 {[%clk 0:00:13]}  Qxb5 {[%clk 0:00:05]} 75. Qf5 {[%clk 0:00:12]}  Qb2 {[%clk 0:00:04]} 76. Rf3 {[%clk 0:00:12]}  Qd4 {[%clk 0:00:03]} 77. Kg2 {[%clk 0:00:11]}  Qd2+ {[%clk 0:00:03]} 78. Rf2 {[%clk 0:00:12]}  Qd4 {[%clk 0:00:04]} 79. Qf3 {[%clk 0:00:13]}  Qe5 {[%clk 0:00:04]} 80. Re2 {[%clk 0:00:13]}  Qd4 {[%clk 0:00:04]} 81. Re3 {[%clk 0:00:14]}  Qa1 {[%clk 0:00:05]} 82. Qf2 {[%clk 0:00:14]}  Qd4 {[%clk 0:00:04]} 83. Rf3 {[%clk 0:00:15]}  Qe4 {[%clk 0:00:04]} 84. Kg3 {[%clk 0:00:15]}  Qe5+ {[%clk 0:00:05]} 85. Kg2 {[%clk 0:00:16]}  Qd5 {[%clk 0:00:06]} 86. Qb2 {[%clk 0:00:15]}  Qc6 {[%clk 0:00:05]} 87. Qd4 {[%clk 0:00:15]}  Qe6 {[%clk 0:00:04]} 88. Kg3 {[%clk 0:00:15]}  Qe1+ {[%clk 0:00:04]} 89. Qf2 {[%clk 0:00:14]}  Qe6 {[%clk 0:00:05]} 90. Qb2 {[%clk 0:00:14]}  Qd6+ {[%clk 0:00:05]} 91. Kg2 {[%clk 0:00:14]}  Qc6 {[%clk 0:00:06]} 92. h4 {[%clk 0:00:14]}  gxh4 {[%clk 0:00:05]} 93. g5 {[%clk 0:00:15]}  h3+ {[%clk 0:00:02]} 94. Kg3 {[%clk 0:00:11]}  Qd6+ {[%clk 0:00:02]} 95. Kxh3 {[%clk 0:00:10]}  Qe6+ {[%clk 0:00:02]} 96. Kg2 {[%clk 0:00:09]}  Kh7 {[%clk 0:00:01]} 97. Qxf6 {[%clk 0:00:09]}  Qg4+ {[%clk 0:00:01]} 98. Kf2 {[%clk 0:00:09]}  Qh4+ {[%clk 0:00:01]} 99. Ke3 {[%clk 0:00:09]}  Qe1+ {[%clk 0:00:02]} 100. Kf4 {[%clk 0:00:10]}  Qd2+ {[%clk 0:00:02]} 101. Kg3 {[%clk 0:00:09]}  Qe1+ {[%clk 0:00:02]} 102. Rf2 {[%clk 0:00:10]}  Qg1+ {[%clk 0:00:03]} 103. Kf3 {[%clk 0:00:09]}  Qh1+ {[%clk 0:00:03]} 104. Ke2 {[%clk 0:00:09]}  Qe4+ {[%clk 0:00:03]} 105. Kd2 {[%clk 0:00:10]}  Qd5+ {[%clk 0:00:03]} 106. Ke3 {[%clk 0:00:10]}  Qc5+ {[%clk 0:00:03]} 107. Qd4 {[%clk 0:00:10]}  Qa3+ {[%clk 0:00:04]} 108. Kf4 {[%clk 0:00:10]}  Qh3 {[%clk 0:00:02]} 109. Qe4+ {[%clk 0:00:10]}  Kg8 {[%clk 0:00:02]} 110. Qe8+ {[%clk 0:00:10]}  Kg7 {[%clk 0:00:01]} 111. Qe5+ {[%clk 0:00:10]}  Kg8 {[%clk 0:00:02]} 112. Qb8+ {[%clk 0:00:09]}  Kg7 {[%clk 0:00:01]} 113. Qb2+ {[%clk 0:00:09]}  Kg8 {[%clk 0:00:02]} 114. Qb8+ {[%clk 0:00:08]}  Kg7 {[%clk 0:00:02]} 115. Qe5+ {[%clk 0:00:08]}  Kg8 {[%clk 0:00:02]} 116. Qf5 {[%clk 0:00:08]}  Qh4+ {[%clk 0:00:02]} 117. Kf3 {[%clk 0:00:08]}  Qh1+ {[%clk 0:00:03]} 118. Kg3 {[%clk 0:00:08]}  Qg1+ {[%clk 0:00:03]} 119. Rg2 {[%clk 0:00:08]}  Qe1+ {[%clk 0:00:03]} 120. Qf2 {[%clk 0:00:09]}  Qe5+ {[%clk 0:00:03]} 121. Qf4 {[%clk 0:00:09]}  Qe1+ {[%clk 0:00:03]} 122. Kh3 {[%clk 0:00:09]}  Qe6+ {[%clk 0:00:04]} 123. Kh4 {[%clk 0:00:09]}  Qe7 {[%clk 0:00:04]} 124. Rf2 {[%clk 0:00:10]}  Qe6 {[%clk 0:00:05]} 125. Qf6 {[%clk 0:00:10]}  Qe4+ {[%clk 0:00:05]} 126. Qf4 {[%clk 0:00:10]}  Qh1+ {[%clk 0:00:05]} 127. Kg3 {[%clk 0:00:10]}  Qg1+ {[%clk 0:00:06]} 128. Kf3 {[%clk 0:00:10]}  Qh1+ {[%clk 0:00:06]} 129. Ke2 {[%clk 0:00:10]}  Qh5+ {[%clk 0:00:06]} 130. Qf3 {[%clk 0:00:10]}  Qg6 {[%clk 0:00:06]} 131. Qf6 {[%clk 0:00:11]}  Qc2+ {[%clk 0:00:06]} 132. Kf3 {[%clk 0:00:11]}  Qd3+ {[%clk 0:00:07]} 133. Kg2 {[%clk 0:00:11]}  Qe4+ {[%clk 0:00:07]} 134. Rf3 {[%clk 0:00:12]}  Qe2+ {[%clk 0:00:07]} 135. Kh3 {[%clk 0:00:12]}  Qa2 {[%clk 0:00:06]} 136. g6 {[%clk 0:00:12]}  Qd5 {[%clk 0:00:06]} 137. Qxf7+ {[%clk 0:00:12]}  Qxf7 {[%clk 0:00:05]} 138. gxf7+ {[%clk 0:00:13]}  Kf8 {[%clk 0:00:06]} 139. Kg2 {[%clk 0:00:14]}  Kg7 {[%clk 0:00:07]} 140. f8=Q+ {[%clk 0:00:15]} 1-0


[Site "https://www.chess.com"]

[Event "Titled Tuesday Blitz November 15 Late 2022"]
[White "Melian, Juan Sebastian"]
[Black "Brown, Andrew"]
[WhiteFideId "3706575"]
[BlackFideId "3206513"]
[WhiteElo "2044"]
[BlackElo "2245"]
[Result "1-0"]
[Round "08"]
[TimeControl "180+1"]
[Date "2022.11.16"]
[WhiteClock "0:00:09"]
[BlackClock "0:00:07"]

1. d4 {[%clk 0:02:56]}  g6 {[%clk 0:03:00]} 2. c4 {[%clk 0:02:56]}  Bg7 {[%clk 0:03:01]} 3. Nc3 {[%clk 0:02:57]}  d6 {[%clk 0:03:01]} 4. e4 {[%clk 0:02:57]}  Nd7 {[%clk 0:03:01]} 5. Nge2 {[%clk 0:02:58]}  e5 {[%clk 0:03:01]} 6. Be3 {[%clk 0:02:58]}  Ne7 {[%clk 0:03:02]} 7. f3 {[%clk 0:02:53]}  f5 {[%clk 0:03:01]} 8. dxe5 {[%clk 0:02:52]}  Nxe5 {[%clk 0:03:00]} 9. Nf4 {[%clk 0:02:47]}  O-O {[%clk 0:02:51]} 10. Be2 {[%clk 0:02:41]}  fxe4 {[%clk 0:02:41]} 11. Nxe4 {[%clk 0:02:42]}  Nf5 {[%clk 0:02:35]} 12. Bf2 {[%clk 0:02:37]}  c6 {[%clk 0:02:30]} 13. O-O {[%clk 0:02:35]}  Bh6 {[%clk 0:02:19]} 14. g3 {[%clk 0:02:00]}  Bxf4 {[%clk 0:02:07]} 15. gxf4 {[%clk 0:02:01]}  Nf7 {[%clk 0:01:52]} 16. Qd3 {[%clk 0:01:49]}  d5 {[%clk 0:01:26]} 17. cxd5 {[%clk 0:01:50]}  cxd5 {[%clk 0:01:23]} 18. Qxd5 {[%clk 0:01:48]}  Qxd5 {[%clk 0:01:23]} 19. Nf6+ {[%clk 0:01:49]}  Kg7 {[%clk 0:01:23]} 20. Nxd5 {[%clk 0:01:49]}  Bd7 {[%clk 0:01:11]} 21. Nc3 {[%clk 0:01:45]}  Bc6 {[%clk 0:01:10]} 22. Rfd1 {[%clk 0:01:44]}  Rfe8 {[%clk 0:01:08]} 23. Kf1 {[%clk 0:01:44]}  Ne3+ {[%clk 0:01:06]} 24. Bxe3 {[%clk 0:01:43]}  Rxe3 {[%clk 0:01:06]} 25. Kf2 {[%clk 0:01:43]}  Rae8 {[%clk 0:01:06]} 26. Rd2 {[%clk 0:01:43]}  Nh6 {[%clk 0:00:54]} 27. Rd3 {[%clk 0:01:22]}  Nf5 {[%clk 0:00:48]} 28. Rxe3 {[%clk 0:01:19]}  Nxe3 {[%clk 0:00:38]} 29. Rc1 {[%clk 0:01:19]}  h5 {[%clk 0:00:32]} 30. Bd3 {[%clk 0:01:17]}  Nf5 {[%clk 0:00:17]} 31. Bxf5 {[%clk 0:01:17]}  gxf5 {[%clk 0:00:18]} 32. Rg1+ {[%clk 0:01:17]}  Kf6 {[%clk 0:00:18]} 33. Rg5 {[%clk 0:01:18]}  Rd8 {[%clk 0:00:18]} 34. Rxh5 {[%clk 0:00:47]}  Rd2+ {[%clk 0:00:17]} 35. Ke3 {[%clk 0:00:48]}  Rxb2 {[%clk 0:00:16]} 36. Rh6+ {[%clk 0:00:48]}  Kg7 {[%clk 0:00:15]} 37. Re6 {[%clk 0:00:44]}  Rxh2 {[%clk 0:00:15]} 38. Ne2 {[%clk 0:00:42]}  Kf7 {[%clk 0:00:13]} 39. Re5 {[%clk 0:00:41]}  Kf6 {[%clk 0:00:13]} 40. Nd4 {[%clk 0:00:41]}  Rxa2 {[%clk 0:00:12]} 41. Rxf5+ {[%clk 0:00:40]}  Ke7 {[%clk 0:00:13]} 42. Rh5 {[%clk 0:00:34]}  Ra3+ {[%clk 0:00:10]} 43. Kf2 {[%clk 0:00:34]}  a5 {[%clk 0:00:11]} 44. f5 {[%clk 0:00:29]}  a4 {[%clk 0:00:10]} 45. f4 {[%clk 0:00:25]}  Rd3 {[%clk 0:00:08]} 46. Rh7+ {[%clk 0:00:25]}  Kd6 {[%clk 0:00:05]} 47. Ne6 {[%clk 0:00:19]}  Rf3+ {[%clk 0:00:04]} 48. Ke2 {[%clk 0:00:18]}  a3 {[%clk 0:00:02]} 49. Rh8 {[%clk 0:00:15]}  Rb3 {[%clk 0:00:03]} 50. Ra8 {[%clk 0:00:15]}  Rb2+ {[%clk 0:00:02]} 51. Kd3 {[%clk 0:00:14]}  a2 {[%clk 0:00:03]} 52. Nd4 {[%clk 0:00:15]}  Rh2 {[%clk 0:00:04]} 53. f6 {[%clk 0:00:14]}  Bd5 {[%clk 0:00:03]} 54. Nf5+ {[%clk 0:00:08]}  Kc7 {[%clk 0:00:04]} 55. Ne3 {[%clk 0:00:08]}  Be6 {[%clk 0:00:03]} 56. Ke4 {[%clk 0:00:08]}  Rh1 {[%clk 0:00:03]} 57. Ke5 {[%clk 0:00:09]}  a1=Q+ {[%clk 0:00:04]} 58. Rxa1 {[%clk 0:00:08]}  Rxa1 {[%clk 0:00:05]} 59. Kxe6 {[%clk 0:00:09]}  Re1 {[%clk 0:00:06]} 60. f7 {[%clk 0:00:10]}  Rxe3+ {[%clk 0:00:06]} 61. Kf5 {[%clk 0:00:08]}  Rf3 {[%clk 0:00:06]} 62. f8=Q {[%clk 0:00:08]}  Rc3 {[%clk 0:00:06]} 63. Qg7+ {[%clk 0:00:08]}  Kb6 {[%clk 0:00:07]} 64. Qxc3 {[%clk 0:00:09]} 1-0


[Site "https://www.chess.com"]

[Event "Titled Tuesday Blitz November 15 Late 2022"]
[White "Melikhov, Evgeny V."]
[Black "Clawitter, Craig"]
[WhiteFideId "4122046"]
[BlackFideId "2023105"]
[WhiteElo "2169"]
[BlackElo "2244"]
[Result "1-0"]
[Round "08"]
[TimeControl "180+1"]
[Date "2022.11.16"]
[WhiteClock "0:00:33"]
[BlackClock "0:00:02"]

1. d4 {[%clk 0:03:00]}  e6 {[%clk 0:02:58]} 2. c4 {[%clk 0:03:00]}  Nf6 {[%clk 0:02:57]} 3. Nc3 {[%clk 0:03:00]}  d5 {[%clk 0:02:57]} 4. cxd5 {[%clk 0:03:00]}  exd5 {[%clk 0:02:58]} 5. Bg5 {[%clk 0:02:59]}  c6 {[%clk 0:02:59]} 6. Qc2 {[%clk 0:02:58]}  Be7 {[%clk 0:02:58]} 7. e3 {[%clk 0:02:58]}  O-O {[%clk 0:02:58]} 8. Bd3 {[%clk 0:02:56]}  Nbd7 {[%clk 0:02:58]} 9. Nf3 {[%clk 0:02:56]}  Re8 {[%clk 0:02:58]} 10. O-O {[%clk 0:02:56]}  Nf8 {[%clk 0:02:56]} 11. h3 {[%clk 0:02:56]}  g6 {[%clk 0:02:43]} 12. Rab1 {[%clk 0:02:53]}  a5 {[%clk 0:02:40]} 13. a3 {[%clk 0:02:52]}  Ne6 {[%clk 0:02:39]} 14. Bh6 {[%clk 0:02:52]}  Ng7 {[%clk 0:02:34]} 15. b4 {[%clk 0:02:49]}  Bd6 {[%clk 0:02:11]} 16. Rfc1 {[%clk 0:02:08]}  Nf5 {[%clk 0:02:02]} 17. Bg5 {[%clk 0:02:01]}  h6 {[%clk 0:02:02]} 18. Bxf6 {[%clk 0:01:57]}  Qxf6 {[%clk 0:02:02]} 19. Ne2 {[%clk 0:01:50]}  axb4 {[%clk 0:01:01]} 20. axb4 {[%clk 0:01:49]}  Bd7 {[%clk 0:01:01]} 21. b5 {[%clk 0:01:44]}  Ra3 {[%clk 0:00:59]} 22. Rb3 {[%clk 0:01:38]}  Rxb3 {[%clk 0:00:51]} 23. Qxb3 {[%clk 0:01:37]}  Nxe3 {[%clk 0:00:44]} 24. fxe3 {[%clk 0:01:34]}  Rxe3 {[%clk 0:00:45]} 25. Ne5 {[%clk 0:01:22]}  Bxe5 {[%clk 0:00:35]} 26. dxe5 {[%clk 0:01:22]}  Qxe5 {[%clk 0:00:33]} 27. Qc2 {[%clk 0:01:12]}  Bxh3 {[%clk 0:00:18]} 28. Rf1 {[%clk 0:01:05]}  Bf5 {[%clk 0:00:07]} 29. Nf4 {[%clk 0:00:53]}  Rxd3 {[%clk 0:00:05]} 30. Nxd3 {[%clk 0:00:53]}  Qd4+ {[%clk 0:00:05]} 31. Qf2 {[%clk 0:00:47]}  Qxd3 {[%clk 0:00:04]} 32. b6 {[%clk 0:00:42]}  Qe4 {[%clk 0:00:03]} 33. Re1 {[%clk 0:00:42]}  Qc4 {[%clk 0:00:02]} 34. Re8+ {[%clk 0:00:37]}  Kh7 {[%clk 0:00:02]} 35. Qe3 {[%clk 0:00:33]} 1-0


[Site "https://www.chess.com"]

[Event "Titled Tuesday Blitz November 15 Late 2022"]
[White "Mendonca, Mateus Nakajo"]
[Black "Forgacs, Attila Jr."]
[WhiteFideId "2110954"]
[BlackFideId "773654"]
[WhiteElo "2310"]
[BlackElo "2168"]
[Result "1-0"]
[Round "08"]
[TimeControl "180+1"]
[Date "2022.11.16"]
[WhiteClock "0:00:22"]
[BlackClock "0:00:04"]

1. d4 {[%clk 0:03:00]}  Nf6 {[%clk 0:03:00]} 2. Nf3 {[%clk 0:02:59]}  g6 {[%clk 0:03:00]} 3. g3 {[%clk 0:02:59]}  Bg7 {[%clk 0:03:00]} 4. Bg2 {[%clk 0:03:00]}  O-O {[%clk 0:03:00]} 5. O-O {[%clk 0:03:00]}  d6 {[%clk 0:03:01]} 6. b3 {[%clk 0:03:00]}  c5 {[%clk 0:02:57]} 7. Bb2 {[%clk 0:02:56]}  Nc6 {[%clk 0:02:50]} 8. c4 {[%clk 0:02:49]}  cxd4 {[%clk 0:02:49]} 9. Nxd4 {[%clk 0:02:48]}  Bd7 {[%clk 0:02:50]} 10. Nc3 {[%clk 0:02:46]}  Nxd4 {[%clk 0:02:36]} 11. Qxd4 {[%clk 0:02:47]}  Bc6 {[%clk 0:02:37]} 12. Nd5 {[%clk 0:02:42]}  Ne8 {[%clk 0:02:33]} 13. Qd2 {[%clk 0:02:37]}  Bxb2 {[%clk 0:02:32]} 14. Qxb2 {[%clk 0:02:38]}  Bxd5 {[%clk 0:02:32]} 15. Bxd5 {[%clk 0:02:36]}  Qb6 {[%clk 0:02:29]} 16. h4 {[%clk 0:02:28]}  Nf6 {[%clk 0:02:26]} 17. Bf3 {[%clk 0:02:29]}  h5 {[%clk 0:02:23]} 18. Rfd1 {[%clk 0:02:27]}  Rac8 {[%clk 0:02:21]} 19. Rac1 {[%clk 0:02:26]}  Rfd8 {[%clk 0:02:19]} 20. Kg2 {[%clk 0:02:18]}  Rc5 {[%clk 0:02:12]} 21. Rd4 {[%clk 0:02:14]}  Rdc8 {[%clk 0:02:05]} 22. Rcd1 {[%clk 0:02:14]}  Rxc4 {[%clk 0:01:59]} 23. Rxd6 {[%clk 0:01:52]}  exd6 {[%clk 0:01:34]} 24. Qxf6 {[%clk 0:01:51]}  R4c7 {[%clk 0:01:26]} 25. Rxd6 {[%clk 0:01:39]}  Qc5 {[%clk 0:01:26]} 26. Bd5 {[%clk 0:01:36]}  Qc2 {[%clk 0:01:08]} 27. e4 {[%clk 0:01:27]}  Kh7 {[%clk 0:00:54]} 28. Qf4 {[%clk 0:00:52]}  Qc1 {[%clk 0:00:43]} 29. Qxc1 {[%clk 0:00:39]}  Rxc1 {[%clk 0:00:44]} 30. Bxf7 {[%clk 0:00:40]}  R8c6 {[%clk 0:00:40]} 31. Bxg6+ {[%clk 0:00:39]}  Kg7 {[%clk 0:00:40]} 32. Rxc6 {[%clk 0:00:37]}  Rxc6 {[%clk 0:00:38]} 33. Bxh5 {[%clk 0:00:37]}  Rc2 {[%clk 0:00:37]} 34. g4 {[%clk 0:00:29]}  Rxa2 {[%clk 0:00:35]} 35. g5 {[%clk 0:00:29]}  Rb2 {[%clk 0:00:32]} 36. Kg3 {[%clk 0:00:29]}  Rxb3+ {[%clk 0:00:32]} 37. Kg4 {[%clk 0:00:27]}  a5 {[%clk 0:00:28]} 38. e5 {[%clk 0:00:27]}  a4 {[%clk 0:00:19]} 39. e6 {[%clk 0:00:27]}  Kf8 {[%clk 0:00:19]} 40. g6 {[%clk 0:00:25]}  Rb4+ {[%clk 0:00:17]} 41. Kg5 {[%clk 0:00:25]}  Rb5+ {[%clk 0:00:17]} 42. Kh6 {[%clk 0:00:22]}  Rxh5+ {[%clk 0:00:12]} 43. Kxh5 {[%clk 0:00:23]}  a3 {[%clk 0:00:13]} 44. Kh6 {[%clk 0:00:21]}  a2 {[%clk 0:00:11]} 45. g7+ {[%clk 0:00:21]}  Ke7 {[%clk 0:00:06]} 46. g8=Q {[%clk 0:00:21]}  a1=Q {[%clk 0:00:06]} 47. Qf7+ {[%clk 0:00:21]}  Kd6 {[%clk 0:00:06]} 48. f4 {[%clk 0:00:20]}  Qh8+ {[%clk 0:00:05]} 49. Kg5 {[%clk 0:00:21]}  Qc3 {[%clk 0:00:04]} 50. Qd7+ {[%clk 0:00:20]}  Kc5 {[%clk 0:00:03]} 51. Qc7+ {[%clk 0:00:20]}  Kd4 {[%clk 0:00:04]} 52. Qxc3+ {[%clk 0:00:21]}  Kxc3 {[%clk 0:00:04]} 53. e7 {[%clk 0:00:22]} 1-0


[Site "https://www.chess.com"]

[Event "Titled Tuesday Blitz November 15 Late 2022"]
[White "Molenda, Marcin"]
[Black "Hristodoulou, Panagiotis"]
[WhiteFideId "1173065"]
[BlackFideId "4214340"]
[WhiteElo "2550"]
[BlackElo "2677"]
[Result "1-0"]
[Round "08"]
[TimeControl "180+1"]
[Date "2022.11.16"]
[WhiteClock "0:01:35"]
[BlackClock "0:02:01"]

1. e4 {[%clk 0:02:56]}  e5 {[%clk 0:02:59]} 2. Nf3 {[%clk 0:02:55]}  Nc6 {[%clk 0:02:59]} 3. d4 {[%clk 0:02:55]}  exd4 {[%clk 0:02:59]} 4. Nxd4 {[%clk 0:02:56]}  Bc5 {[%clk 0:02:58]} 5. Nb3 {[%clk 0:02:56]}  Bb6 {[%clk 0:02:59]} 6. Nc3 {[%clk 0:02:57]}  Nge7 {[%clk 0:02:58]} 7. Bg5 {[%clk 0:02:52]}  O-O {[%clk 0:02:59]} 8. Nd5 {[%clk 0:02:49]}  d6 {[%clk 0:02:53]} 9. Nxb6 {[%clk 0:02:35]}  axb6 {[%clk 0:02:49]} 10. Be2 {[%clk 0:02:34]}  Be6 {[%clk 0:02:44]} 11. O-O {[%clk 0:02:34]}  f6 {[%clk 0:02:44]} 12. Be3 {[%clk 0:02:29]}  Qe8 {[%clk 0:02:42]} 13. a3 {[%clk 0:02:26]}  Qg6 {[%clk 0:02:41]} 14. f3 {[%clk 0:02:26]}  Rae8 {[%clk 0:02:38]} 15. Nd4 {[%clk 0:02:24]}  Nxd4 {[%clk 0:02:38]} 16. Qxd4 {[%clk 0:02:25]}  f5 {[%clk 0:02:37]} 17. Bd3 {[%clk 0:02:08]}  Nc6 {[%clk 0:02:27]} 18. Qc3 {[%clk 0:01:54]}  f4 {[%clk 0:02:17]} 19. Bf2 {[%clk 0:01:50]}  Bh3 {[%clk 0:02:15]} 20. g4 {[%clk 0:01:38]}  fxg3 {[%clk 0:02:12]} 21. Bxg3 {[%clk 0:01:36]}  Bxf1 {[%clk 0:02:12]} 22. Rxf1 {[%clk 0:01:37]}  Ne5 {[%clk 0:02:07]} 23. Be2 {[%clk 0:01:37]}  h5 {[%clk 0:02:03]} 24. Kh1 {[%clk 0:01:36]}  Qf7 {[%clk 0:02:02]} 25. f4 {[%clk 0:01:35]}  Ng4 {[%clk 0:02:01]} 26. Bc4 {[%clk 0:01:35]} 1-0


[Site "https://www.chess.com"]

[Event "Titled Tuesday Blitz November 15 Late 2022"]
[White "Nakamura, Hikaru"]
[Black "Mikaelyan, Arman"]
[WhiteFideId "2016192"]
[BlackFideId "13304852"]
[WhiteElo "2909"]
[BlackElo "2456"]
[Result "1-0"]
[Round "08"]
[TimeControl "180+1"]
[Date "2022.11.15"]
[WhiteClock "0:00:22"]
[BlackClock "0:00:52"]

1. b4 {[%clk 0:03:00]}  b6 {[%clk 0:02:58]} 2. Bb2 {[%clk 0:02:57]}  Bb7 {[%clk 0:02:59]} 3. Nf3 {[%clk 0:02:57]}  e6 {[%clk 0:02:58]} 4. e3 {[%clk 0:02:56]}  Nf6 {[%clk 0:02:58]} 5. a3 {[%clk 0:02:56]}  Be7 {[%clk 0:02:58]} 6. c4 {[%clk 0:02:56]}  O-O {[%clk 0:02:59]} 7. Nc3 {[%clk 0:02:56]}  c5 {[%clk 0:02:59]} 8. bxc5 {[%clk 0:02:56]}  bxc5 {[%clk 0:02:59]} 9. Bd3 {[%clk 0:02:53]}  d5 {[%clk 0:02:57]} 10. cxd5 {[%clk 0:02:53]}  exd5 {[%clk 0:02:57]} 11. O-O {[%clk 0:02:53]}  Nbd7 {[%clk 0:02:54]} 12. Ne2 {[%clk 0:02:53]}  Rb8 {[%clk 0:02:50]} 13. Rb1 {[%clk 0:02:35]}  Bd6 {[%clk 0:02:47]} 14. Ng3 {[%clk 0:02:34]}  g6 {[%clk 0:02:45]} 15. Be2 {[%clk 0:02:30]}  Qe7 {[%clk 0:02:42]} 16. d3 {[%clk 0:02:24]}  Rfc8 {[%clk 0:02:40]} 17. Qa4 {[%clk 0:02:15]}  Bc6 {[%clk 0:02:35]} 18. Qh4 {[%clk 0:02:16]}  d4 {[%clk 0:02:28]} 19. Qg5 {[%clk 0:02:03]}  Bxg3 {[%clk 0:02:21]} 20. hxg3 {[%clk 0:02:04]}  Rb3 {[%clk 0:01:59]} 21. Nd2 {[%clk 0:01:40]}  Rb5 {[%clk 0:01:55]} 22. a4 {[%clk 0:01:35]}  Rb4 {[%clk 0:01:51]} 23. Ba3 {[%clk 0:01:17]}  Rxa4 {[%clk 0:01:48]} 24. Nc4 {[%clk 0:01:17]}  Bd5 {[%clk 0:01:45]} 25. Ra1 {[%clk 0:00:51]}  Rb8 {[%clk 0:01:37]} 26. Bd1 {[%clk 0:00:41]}  Ra6 {[%clk 0:01:36]} 27. exd4 {[%clk 0:00:41]}  Rb3 {[%clk 0:01:27]} 28. Bxb3 {[%clk 0:00:41]}  Qe2 {[%clk 0:01:05]} 29. Qe3 {[%clk 0:00:27]}  Qh5 {[%clk 0:01:04]} 30. f3 {[%clk 0:00:27]}  Re6 {[%clk 0:01:00]} 31. Qf2 {[%clk 0:00:28]}  cxd4 {[%clk 0:00:58]} 32. Rae1 {[%clk 0:00:24]}  Ra6 {[%clk 0:00:52]} 33. g4 {[%clk 0:00:24]}  Qg5 {[%clk 0:00:52]} 34. Bc1 {[%clk 0:00:24]}  Nxg4 {[%clk 0:00:52]} 35. Bxg5 {[%clk 0:00:22]} 1-0


[Site "https://www.chess.com"]